bitfinex/quotes_ETHUSD_20250319
["timestamp","ask_amount","ask_price","bid_price","bid_amount"]
[1742401842819,4.89273,2043.9,2043.8,5.01]
[1742401843019,4.89273,2043.9,2043.7,5.01]
[1742401843428,4.89236,2044.0,2043.7,5.01]
[1742401843629,4.89236,2044.0,2043.7,5.58935]
[1742401843855,4.89214,2044.1,2043.7,5.58935]
[1742401844054,4.89189,2044.2,2043.8,0.7835]
[1742401844555,4.8917,2044.3,2043.8,0.7835]
[1742401844733,9.78353,2044.3,2043.8,0.7835]
[1742401844934,9.78353,2044.3,2043.9,0.6732815]
[1742401845161,4.89143,2044.4,2043.9,0.6732815]
[1742401845326,4.89114,2044.6,2044.0,0.8248]
[1742401845527,10.13799516,2044.8,2044.1,5.01]
[1742401845752,4.89141,2044.4,2044.1,5.01]
[1742401845925,4.89141,2044.4,2044.1,5.66080815]
[1742401846123,9.78301,2044.4,2044.1,5.66080815]
[1742401846324,4.89194,2044.2,2044.1,5.01]
[1742401847055,4.89244,2044.0,2043.8,1.73896939]
[1742401847234,4.8926,2043.9,2043.8,9.74896939]
[1742401847836,4.8926,2043.9,2043.8,1.73896939]
[1742401848038,4.8924,2044.0,2043.8,1.73896939]
[1742401848455,4.8924,2044.0,2043.6,0.8245]
[1742401848456,4.89293,2043.8,2043.6,0.8245]
[1742401848670,4.89308,2043.7,2043.6,5.8345]
[1742401848953,4.89266,2043.9,2043.6,5.8345]
[1742401849156,4.89242,2044.0,2043.6,6.41795]
[1742401849546,5.65412,2044.2,2043.6,6.41795]
[1742401849740,4.8919,2044.2,2043.7,0.7886]
[1742401850138,4.89181,2044.3,2043.7,0.7886]
[1742401850336,4.89113,2044.6,2043.9,0.8237]
[1742401850531,4.89113,2044.6,2044.2,0.8237]
[1742401850881,5.64299,2044.7,2044.2,0.8237]
[1742401850882,4.89069,2044.7,2044.2,0.8237]
[1742401851858,9.78159,2044.7,2044.2,0.8237]
[1742401852169,4.89118,2044.5,2044.2,0.8237]
[1742401852527,4.89101,2044.6,2044.2,0.8237]
[1742401852728,4.89141,2044.4,2044.2,0.8237]
[1742401852928,4.89141,2044.4,2044.3,5.01]
[1742401853222,4.89141,2044.4,2044.1,5.01]
[1742401853223,4.8919,2044.2,2044.1,5.01]
[1742401853860,4.89183,2044.3,2044.1,5.01]
[1742401854065,4.89182,2044.3,2044.1,5.01]
[1742401854379,4.89188,2044.2,2044.1,5.01]
[1742401854938,15.69134368,2044.4,2044.1,5.01]
[1742401855143,4.48189516,2044.2,2043.8,4.7483142]
[1742401855368,4.89221,2044.1,2043.8,3.7663]
[1742401855546,9.37379516,2044.2,2043.8,3.7663]
[1742401855739,4.89238,2044.0,2043.8,5.7763]
[1742401856271,4.8922,2044.1,2043.8,5.7763]
[1742401856488,4.89241,2044.0,2043.8,5.7763]
[1742401856781,4.89269,2043.9,2043.8,5.01]
[1742401856962,9.78546,2043.9,2043.8,5.01]
[1742401857149,4.89348,2043.6,2042.9,0.8052]
[1742401857354,4.89348,2043.6,2043.0,5.009]
[1742401857559,4.89373,2043.5,2043.1,0.7989]
[1742401857742,4.89387,2043.4,2043.2,5.009]
[1742401858879,9.78785,2043.4,2043.2,5.01]
[1742401859081,9.78785,2043.4,2042.7,1.123541]
[1742401859082,1.50413452,2043.4,2042.7,1.123541]
[1742401859255,9.37570516,2043.4,2042.8,5.01]
[1742401859457,4.89436,2043.2,2042.9,3.7581]
[1742401859669,4.89411,2043.3,2042.9,3.7581]
[1742401859980,4.48189516,2043.4,2042.9,3.7581]
[1742401860183,4.89371,2043.5,2042.9,3.7581]
[1742401860359,4.48189516,2043.4,2042.9,4.63491]
[1742401860686,4.89476,2043.0,2042.7,0.7546]
[1742401860886,4.89548,2042.7,2042.3,0.7546]
[1742401861106,4.89548,2042.7,2042.3,5.7636]
[1742401861314,9.37721516,2042.8,2042.3,5.7636]
[1742401861315,9.37719516,2042.8,2042.3,5.7636]
[1742401861477,4.89548,2042.7,2042.3,5.7636]
[1742401862006,4.89548,2042.7,2042.3,0.7546]
[1742401862207,4.89548,2042.7,2042.4,5.01]
[1742401862414,4.89548,2042.7,2041.8,4.23539407]
[1742401862588,4.89548,2042.7,2041.9,5.01]
[1742401862976,4.89548,2042.7,2041.9,8.01]
[1742401863405,4.89548,2042.7,2042.2,0.755]
[1742401864313,4.89548,2042.7,2041.9,3.0]
[1742401864475,4.89548,2042.7,2042.2,0.7525]
[1742401865108,10.18009516,2042.8,2042.2,0.7525]
[1742401865109,10.18006516,2042.8,2042.2,0.7525]
[1742401865320,4.48189516,2043.0,2042.3,5.011]
[1742401865503,4.89534,2042.8,2042.3,5.011]
[1742401865815,9.37670516,2043.0,2042.3,5.011]
[1742401866110,4.89538,2042.8,2042.3,5.011]
[1742401866318,9.37668516,2043.0,2042.4,3.0]
[1742401866516,4.89512,2042.9,2042.4,3.0]
[1742401866718,9.78891,2043.2,2042.7,0.7939]
[1742401866880,4.89441,2043.2,2042.7,5.8049]
[1742401867085,9.37593516,2043.3,2042.8,0.59255]
[1742401867285,4.89444,2043.2,2042.8,0.59255]
[1742401867803,4.89404,2043.3,2042.8,0.59255]
[1742401867982,4.89412,2043.3,2042.8,0.59255]
[1742401868182,9.37593516,2043.3,2042.8,0.59255]
[1742401868475,9.78891,2043.2,2042.8,0.59255]
[1742401868681,4.89442,2043.2,2042.9,0.639745]
[1742401868913,5.68801,2043.4,2042.9,0.639745]
[1742401869098,4.89343,2043.6,2043.0,0.8325]
[1742401869305,9.37558516,2043.5,2043.1,5.011]
[1742401869484,4.89384,2043.4,2043.1,5.011]
[1742401869884,4.89415,2043.3,2043.1,5.011]
[1742401870286,4.89428,2043.2,2043.1,5.011]
[1742401870500,4.89453,2043.1,2042.8,8.011]
[1742401870723,4.89486,2043.0,2042.7,0.8256]
[1742401870921,9.37728516,2042.8,2042.6,0.1206]
[1742401871121,4.89548,2042.7,2042.6,0.1206]
[1742401871336,7.63879952,2042.7,2042.6,0.1206]
[1742401872187,7.8938,2043.4,2042.6,0.1206]
[1742401872389,9.78932,2043.1,2042.7,5.011]
[1742401872724,4.8946,2043.1,2042.7,5.011]
[1742401872902,4.89411,2043.3,2042.7,5.011]
[1742401873226,4.89435,2043.2,2042.7,5.011]
[1742401873523,4.89435,2043.2,2042.7,5.60309]
[1742401873688,9.78881,2043.2,2042.7,5.60309]
[1742401873893,9.78878,2043.2,2042.7,5.60309]
[1742401874093,4.89453,2043.1,2042.7,5.60309]
[1742401874295,4.89458,2043.1,2042.7,5.60309]
[1742401874512,4.89435,2043.2,2042.7,5.60309]
[1742401874717,4.89488,2043.0,2042.6,0.1206]
[1742401875021,4.8951,2042.9,2042.6,0.1206]
[1742401875225,0.7542,2043.0,2042.6,0.1206]
[1742401875430,4.89548,2042.7,2042.6,0.1206]
[1742401876856,4.48189516,2042.9,2042.6,0.1206]
[1742401876857,9.37690516,2042.9,2042.6,0.1206]
[1742401877142,4.89481,2043.0,2042.7,0.764]
[1742401877349,4.89479,2043.0,2042.7,0.764]
[1742401877521,4.89505,2042.9,2042.7,0.764]
[1742401878413,4.89479,2043.0,2042.7,0.764]
[1742401878747,4.89512,2042.9,2042.7,0.764]
[1742401878934,4.89548,2042.7,2042.6,0.1206]
[1742401879634,6.40055252,2042.7,2042.6,0.1206]
[1742401880214,4.89548,2042.7,2042.6,0.1206]
[1742401881824,9.43858011,2042.7,2042.6,0.1206]
[1742401882043,10.15587516,2042.7,2042.6,0.1206]
[1742401883348,5.67398,2042.7,2042.6,0.1206]
[1742401883650,10.15587516,2042.7,2042.6,0.1206]
[1742401883856,12.65158868,2042.7,2042.6,0.1206]
[1742401889158,4.89525,2042.8,2042.6,0.1206]
[1742401889365,4.89504,2042.9,2042.6,0.1206]
[1742401889558,4.89538,2042.8,2042.6,0.1206]
[1742401890147,4.89486,2043.0,2042.7,0.8228]
[1742401890348,4.89462,2043.1,2042.7,0.8228]
[1742401890574,4.89484,2043.0,2042.7,0.8228]
[1742401890898,4.89452,2043.1,2042.7,0.8228]
[1742401891175,4.89548,2042.7,2042.6,0.1206]
[1742401893355,9.79088,2042.8,2042.6,0.1206]
[1742401893677,4.89548,2042.7,2042.6,0.1206]
[1742401895069,6.18633668,2043.0,2042.6,0.1206]
[1742401895070,4.89508,2042.9,2042.6,0.1206]
[1742401895477,4.89526,2042.8,2042.6,0.1206]
[1742401895674,9.79066,2042.8,2042.6,0.1206]
[1742401895873,9.7907,2042.8,2042.6,0.1206]
[1742401896081,4.89548,2042.7,2042.6,0.1206]
[1742401897375,6.364058,2042.7,2042.6,0.1206]
[1742401898847,4.89548,2042.7,2042.6,0.1206]
[1742401899179,4.9566878,2042.7,2042.6,0.1206]
[1742401899678,9.3067878,2042.7,2042.6,1e-05]
[1742401899889,9.24558,2042.7,2042.6,1e-05]
[1742401900554,14.25658,2042.7,2042.6,1e-05]
[1742401900756,19.24311635,2042.7,2042.6,1e-05]
[1742401901760,25.60169799,2042.7,2042.6,1e-05]
[1742401902148,13.68211635,2042.7,2042.6,1e-05]
[1742401902553,18.16401151,2042.7,2042.6,1e-05]
[1742401903269,19.08431144,2042.7,2042.6,1e-05]
[1742401905091,25.07431144,2042.7,2042.6,1e-05]
[1742401905291,4.89763,2041.8,2041.7,0.8326]
[1742401905776,4.89749,2041.9,2041.7,0.8326]
[1742401906094,9.79507,2041.9,2041.7,0.8326]
[1742401906261,4.89763,2041.8,2041.7,0.8326]
[1742401906684,4.89704,2042.1,2041.7,0.8326]
[1742401906895,9.79414,2042.1,2041.7,1.71696]
[1742401907295,4.89717,2042.0,2041.7,1.71696]
[1742401907693,15.36809516,2042.4,2041.8,0.7811]
[1742401907694,4.89644,2042.3,2041.8,0.7811]
[1742401907896,9.79304,2042.3,2041.9,0.7811]
[1742401908098,4.89669,2042.2,2041.9,0.7811]
[1742401908864,9.79357,2042.2,2041.9,0.7811]
[1742401909098,4.89669,2042.2,2041.9,0.7811]
[1742401909469,4.89646,2042.3,2041.9,0.7811]
[1742401909811,4.89715,2042.0,2041.9,0.7811]
[1742401910371,4.89739,2041.9,2041.8,6.06]
[1742401910862,9.37928516,2041.9,2041.8,6.06]
[1742401911779,4.89766,2041.8,2041.5,3.7775]
[1742401911999,4.89739,2041.9,2041.5,3.7775]
[1742401912178,4.89739,2041.9,2041.7,0.7565]
[1742401912515,4.89718,2042.0,2041.7,0.7565]
[1742401912681,4.89726,2042.0,2041.7,0.7565]
[1742401913689,4.89701,2042.1,2041.7,0.7565]
[1742401913982,4.89718,2042.0,2041.7,0.7565]
[1742401914416,4.89763,2041.8,2041.7,0.7565]
[1742401914729,4.89801,2041.7,2041.5,3.8116]
[1742401915086,4.89811,2041.6,2041.5,3.8116]
[1742401915620,4.89794,2041.7,2041.5,3.8116]
[1742401915916,4.89797,2041.7,2041.5,3.8116]
[1742401916122,4.8975,2041.9,2041.5,4.79876]
[1742401916326,4.89769,2041.8,2041.5,4.79876]
[1742401916897,4.8974,2041.9,2041.5,4.79876]
[1742401917224,4.89752,2041.9,2041.6,0.7703]
[1742401918426,4.89726,2042.0,2041.6,0.7703]
[1742401918736,4.89726,2042.0,2041.6,5.7813]
[1742401919106,9.79462,2042.0,2041.6,5.7813]
[1742401919305,11.30691368,2042.3,2041.7,0.7856]
[1742401919306,9.79402,2042.1,2041.7,0.7856]
[1742401919490,4.89718,2042.0,2041.7,0.7856]
[1742401919696,4.89693,2042.1,2041.7,3.7856]
[1742401920304,4.89668,2042.2,2041.7,3.7856]
[1742401920631,4.89669,2042.2,2041.8,0.8328]
[1742401920792,4.89652,2042.3,2041.8,0.8328]
[1742401920997,4.89652,2042.3,2041.9,0.8328]
[1742401921557,4.8962,2042.4,2041.9,0.8328]
[1742401921752,4.89596,2042.5,2041.9,0.8328]
[1742401921950,4.89572,2042.6,2042.1,0.8328]
[1742401922140,4.89572,2042.6,2042.1,3.8328]
[1742401922448,9.79165,2042.6,2042.2,0.69928555]
[1742401922765,4.89503,2042.9,2042.4,0.8328]
[1742401922958,4.89477,2043.0,2042.5,8.01]
[1742401923254,4.89477,2043.0,2042.6,0.8328]
[1742401923639,4.89456,2043.1,2042.6,0.8328]
[1742401923842,4.89391,2043.4,2042.7,0.8328]
[1742401924152,4.89438,2043.2,2042.9,0.8328]
[1742401924360,4.89438,2043.2,2042.9,5.8428]
[1742401925254,4.89476,2043.0,2042.9,5.8428]
[1742401925567,4.89476,2043.0,2042.8,6.06]
[1742401926249,4.89454,2043.1,2042.8,6.06]
[1742401926959,4.89496,2043.0,2042.8,6.06]
[1742401927255,4.895,2042.9,2042.7,0.813]
[1742401927562,4.895,2042.9,2042.3,6.77647056]
[1742401927563,4.89572,2042.6,2042.3,6.77647056]
[1742401927856,4.89607,2042.5,2042.3,5.7713]
[1742401928158,4.8962,2042.4,2042.3,5.009]
[1742401929262,4.89668,2042.2,2042.0,5.009]
[1742401929425,4.89598,2042.5,2042.1,3.0]
[1742401929622,4.89644,2042.3,2042.0,8.009]
[1742401929822,4.89644,2042.3,2042.1,3.0]
[1742401930258,4.89644,2042.3,2042.0,5.009]
[1742401930424,9.79304,2042.3,2042.1,3.0]
[1742401930826,4.89644,2042.3,2042.1,3.0]
[1742401931458,4.89653,2042.3,2042.0,5.009]
[1742401931667,4.89589,2042.6,2042.2,0.7806]
[1742401931877,4.89477,2043.0,2042.4,3.0]
[1742401932027,4.89477,2043.0,2042.5,5.8263]
[1742401932360,4.89454,2043.1,2042.6,0.8183]
[1742401932556,4.89483,2043.0,2042.6,0.8183]
[1742401932758,4.89454,2043.1,2042.6,8.36693]
[1742401932935,9.78825,2043.3,2042.6,7.54863]
[1742401933129,0.7772,2043.5,2042.6,7.54863]
[1742401933130,4.48189516,2043.4,2042.8,0.7928]
[1742401933330,4.8944,2043.2,2042.8,0.7928]
[1742401933545,4.89408,2043.3,2042.8,0.7928]
[1742401933744,4.89444,2043.2,2042.8,0.7928]
[1742401933957,9.78894,2043.2,2042.8,0.7928]
[1742401934145,4.89455,2043.1,2042.8,0.7928]
[1742401934735,4.89433,2043.2,2042.8,0.7928]
[1742401935256,4.895,2042.9,2042.7,6.06]
[1742401935461,4.89524,2042.8,2042.7,6.06]
[1742401935968,4.89477,2043.0,2042.7,6.06]
[1742401936392,1.42702952,2043.2,2042.8,0.8184]
[1742401936695,4.89456,2043.1,2042.8,0.8184]
[1742401937092,4.895,2042.9,2042.8,0.8184]
[1742401937285,4.895,2042.9,2042.7,6.06]
[1742401937765,4.89484,2043.0,2042.7,6.06]
[1742401938161,4.89524,2042.8,2042.7,6.06]
[1742401938379,4.89524,2042.8,2042.6,0.8073]
[1742401938380,4.89509,2042.9,2042.6,0.8073]
[1742401938574,1.66007847,2043.1,2042.6,1.68883]
[1742401938575,4.8946,2043.1,2042.6,1.68883]
[1742401938766,4.8944,2043.2,2042.7,0.7763]
[1742401939699,9.78885,2043.2,2042.7,0.7763]
[1742401939996,4.8944,2043.2,2042.7,0.7763]
[1742401940399,4.89383,2043.4,2042.9,0.8229]
[1742401940564,3.80580852,2043.4,2042.9,0.8229]
[1742401940763,4.89431,2043.2,2042.9,0.8229]
[1742401940964,4.89431,2043.2,2042.9,1.82188952]
[1742401941159,4.89463,2043.1,2042.9,1.82188952]
[1742401941968,4.89463,2043.1,2042.9,0.8229]
[1742401942163,4.89476,2043.0,2042.9,0.8229]
[1742401942378,4.89476,2043.0,2042.8,5.007]
[1742401942603,9.78969,2043.0,2042.7,7.86570242]
[1742401943301,4.89508,2042.9,2042.7,6.06]
[1742401943607,4.89524,2042.8,2042.7,6.06]
[1742401943805,4.89508,2042.9,2042.7,6.06]
[1742401944397,4.89524,2042.8,2042.7,6.06]
[1742401944804,6.68647066,2042.8,2042.7,6.06]
[1742401945202,5.64624,2042.8,2042.7,6.06]
[1742401945873,5.64624,2042.8,2042.3,5.7742]
[1742401945874,4.89565,2042.7,2042.4,3.0]
[1742401946072,4.8959,2042.6,2042.4,3.0]
[1742401946766,4.89596,2042.5,2042.4,3.0]
[1742401947174,9.79166,2042.6,2042.4,3.0]
[1742401947469,4.89596,2042.5,2042.3,1.75340378]
[1742401947674,4.89646,2042.3,2042.1,6.8874]
[1742401947869,4.8962,2042.4,2042.1,11.8934]
[1742401948804,4.89524,2042.8,2042.2,3.7634]
[1742401949009,9.79068,2042.8,2042.2,3.7634]
[1742401949312,4.89522,2042.9,2042.3,0.8233]
[1742401949473,4.89531,2042.8,2042.3,0.8233]
[1742401949890,4.89558,2042.7,2042.3,0.8233]
[1742401950095,4.89608,2042.5,2042.3,0.8233]
[1742401950370,4.89608,2042.5,2042.2,8.006]
[1742401951007,4.89659,2042.3,2042.1,6.8573]
[1742401951215,4.89623,2042.4,2042.1,6.8573]
[1742401951421,9.37788516,2042.5,2042.1,6.8573]
[1742401951422,4.89599,2042.5,2042.1,6.8573]
[1742401952014,4.89559,2042.7,2042.1,8.04363]
[1742401952219,4.89559,2042.7,2042.2,0.8118]
[1742401952520,4.89587,2042.6,2042.2,0.8118]
[1742401952716,4.89602,2042.5,2042.2,0.8118]
[1742401952928,4.89627,2042.4,2042.2,0.8118]
[1742401953090,9.37740516,2042.7,2042.2,0.8118]
[1742401953413,4.89627,2042.4,2042.2,0.8118]
[1742401954320,4.89551,2042.7,2042.2,0.8118]
[1742401954717,4.89551,2042.7,2042.2,3.8118]
[1742401954962,4.89503,2042.9,2042.3,0.7594]
[1742401955117,4.89481,2043.0,2042.6,0.7502]
[1742401955287,5.884891,2043.0,2042.6,0.7502]
[1742401955486,4.89501,2042.9,2042.6,0.7502]
[1742401955706,4.89524,2042.8,2042.6,0.7502]
[1742401955922,9.78972,2043.0,2042.6,0.7502]
[1742401956123,4.89503,2042.9,2042.6,0.7502]
[1742401956290,4.89533,2042.8,2042.6,0.7502]
[1742401956488,4.89503,2042.9,2042.6,0.7502]
[1742401957721,8.9538974,2043.0,2042.6,0.7502]
[1742401957923,13.8479274,2043.2,2042.7,0.87562]
[1742401958085,13.8479274,2043.2,2042.7,6.06]
[1742401958290,8.9534274,2043.2,2042.8,0.7775]
[1742401958485,4.8938,2043.4,2042.8,0.7775]
[1742401958900,4.8938,2043.4,2043.0,0.7775]
[1742401959995,4.89404,2043.3,2043.0,0.7775]
[1742401960194,4.8938,2043.4,2043.0,0.7775]
[1742401960732,4.89321,2043.7,2043.1,3.7775]
[1742401960942,4.89271,2043.9,2043.2,0.7775]
[1742401961131,4.89271,2043.9,2043.4,0.7775]
[1742401961345,4.89319,2043.7,2043.4,0.7775]
[1742401961648,4.89348,2043.6,2043.4,0.7775]
[1742401961851,4.89326,2043.7,2043.4,0.7775]
[1742401962027,6.32126936,2043.7,2043.4,0.7775]
[1742401962212,11.21452936,2043.7,2043.4,0.7775]
[1742401962412,6.32126936,2043.7,2043.4,0.7775]
[1742401962613,6.32120936,2043.7,2043.4,0.7775]
[1742401963348,4.89341,2043.6,2043.4,0.7775]
[1742401964225,4.89319,2043.7,2043.4,0.7775]
[1742401964550,4.89285,2043.8,2043.4,0.7775]
[1742401964917,4.89285,2043.8,2043.4,1.77827479]
[1742401965211,4.89227,2044.1,2043.4,4.00077479]
[1742401965452,4.89227,2044.1,2043.6,0.7832]
[1742401965453,4.89217,2044.1,2043.6,0.7832]
[1742401965756,6.21599196,2044.2,2043.7,3.0]
[1742401965910,6.21599196,2044.2,2043.7,8.004]
[1742401966114,1.32407196,2044.2,2043.8,0.7733]
[1742401966344,6.25735012,2044.3,2043.8,0.7733]
[1742401966518,4.89198,2044.2,2043.8,0.7733]
[1742401966854,9.84824942,2044.3,2043.8,0.7733]
[1742401966855,4.89249,2044.0,2043.8,0.7733]
[1742401967155,4.89223,2044.1,2043.8,0.7733]
[1742401967848,4.49406357,2044.2,2043.7,3.0]
[1742401968069,4.89249,2044.0,2043.7,3.0]
[1742401968218,4.89301,2043.8,2043.6,11.8861]
[1742401968420,4.89308,2043.7,2043.6,6.06]
[1742401968660,4.89347,2043.6,2043.2,5.8261]
[1742401968817,4.89347,2043.6,2043.3,3.0]
[1742401968818,4.89358,2043.5,2043.3,3.0]
[1742401969220,4.89336,2043.6,2043.3,3.0]
[1742401969450,4.89315,2043.7,2043.3,3.0]
[1742401969754,6.32115636,2043.7,2043.3,3.0]
[1742401970060,4.89337,2043.6,2043.3,3.0]
[1742401970619,4.89357,2043.5,2043.2,6.82530557]
[1742401970941,4.89337,2043.6,2043.2,6.82530557]
[1742401971142,4.8936,2043.5,2043.2,6.82530557]
[1742401971642,4.89362,2043.5,2043.2,6.82530557]
[1742401971820,4.89359,2043.5,2043.2,6.82530557]
[1742401972455,0.06117492,2043.4,2043.2,1.82230557]
[1742401972655,1.12149364,2043.5,2043.2,1.82230557]
[1742401973217,4.89309,2043.7,2043.2,1.82230557]
[1742401973424,0.7982,2043.9,2043.2,0.8231]
[1742401973740,4.89304,2043.8,2043.3,0.7528]
[1742401973946,10.40147893,2044.0,2043.3,0.7528]
[1742401974143,10.40147893,2044.0,2043.3,8.29428]
[1742401974144,4.89305,2043.8,2043.3,8.29428]
[1742401974759,4.89261,2043.9,2043.4,0.8311]
[1742401975075,5.90747536,2044.0,2043.4,0.8311]
[1742401975280,5.90747536,2044.0,2043.6,0.7974]
[1742401975643,4.8927,2043.9,2043.6,0.7974]
[1742401976280,4.89289,2043.8,2043.6,0.7974]
[1742401976597,4.89308,2043.7,2043.6,0.7974]
[1742401977082,4.89308,2043.7,2043.5,5.002]
[1742401977380,4.89332,2043.6,2043.5,5.002]
[1742401977582,4.89319,2043.7,2043.5,5.002]
[1742401977758,4.89332,2043.6,2043.5,5.002]
[1742401978076,4.89319,2043.7,2043.5,5.002]
[1742401979184,4.89319,2043.7,2043.4,0.7709]
[1742401979185,6.06273775,2043.7,2043.4,0.7709]
[1742401979543,5.97267754,2043.9,2043.4,3.7709]
[1742401979743,4.89238,2044.0,2043.4,3.0]
[1742401979946,4.89238,2044.0,2043.5,0.8247]
[1742401980246,4.8922,2044.1,2043.6,0.8247]
[1742401980542,4.89201,2044.2,2043.6,5.8257]
[1742401980754,4.49406357,2044.4,2043.7,0.8247]
[1742401980755,4.89229,2044.1,2043.7,0.8247]
[1742401981144,13.83928711,2044.1,2043.7,0.8247]
[1742401981471,9.78498,2044.0,2043.7,0.8247]
[1742401981747,4.8924,2044.0,2043.7,0.8247]
[1742401982150,8.94681711,2044.1,2043.7,2.01327]
[1742401982479,4.05467711,2044.1,2043.7,2.01327]
[1742401982695,8.94634711,2044.3,2043.7,2.01327]
[1742401982851,4.05467711,2044.3,2043.8,0.7816]
[1742401983182,5.29753771,2044.2,2043.8,0.7816]
[1742401983386,9.78418,2044.2,2043.8,0.7816]
[1742401983584,4.89207,2044.2,2043.8,0.7816]
[1742401983770,8.94633711,2044.3,2043.8,0.7816]
[1742401984293,8.94637711,2044.3,2043.8,0.7816]
[1742401984459,4.89144,2044.4,2043.8,0.7816]
[1742401984664,4.89144,2044.4,2043.9,1.87122771]
[1742401985368,9.78308,2044.4,2043.9,1.87122771]
[1742401985580,4.8926,2043.9,2043.8,3.0]
[1742401985746,8.94727711,2043.9,2043.7,6.8483]
[1742401986299,4.8926,2043.9,2043.7,6.8483]
[1742401986662,4.89213,2044.1,2043.7,6.8483]
[1742401986866,9.78444,2044.1,2043.7,6.8483]
[1742401987301,4.89247,2044.0,2043.7,6.8483]
[1742401987690,4.89263,2043.9,2043.7,6.8483]
[1742401987893,4.89247,2044.0,2043.7,6.8483]
[1742401988079,4.89267,2043.9,2043.6,5.0]
[1742401988280,4.89247,2044.0,2043.6,5.0]
[1742401989201,4.8937,2043.5,2043.3,0.8043]
[1742401989506,4.8938,2043.4,2043.1,11.8643]
[1742401989702,4.89406,2043.3,2043.1,6.8643]
[1742401989902,4.89387,2043.4,2043.2,3.0]
[1742401990282,4.89387,2043.4,2043.1,6.06]
[1742401990478,4.89387,2043.4,2043.2,3.0]
[1742401990870,9.78787,2043.4,2043.2,3.0]
[1742401991070,4.89404,2043.3,2043.2,3.0]
[1742401991405,4.89387,2043.4,2043.2,3.0]
[1742401992608,8.94799711,2043.7,2043.2,3.8261]
[1742401992917,8.94730711,2043.9,2043.4,0.8024]
[1742401993378,4.89285,2043.8,2043.4,6.8624]
[1742401993704,4.89274,2043.9,2043.4,6.8624]
[1742401993919,4.89274,2043.9,2043.4,8.84460771]
[1742401994205,4.8924,2044.0,2043.6,0.7897]
[1742401994383,4.89214,2044.1,2043.6,0.7897]
[1742401994704,4.05467711,2044.2,2043.7,4.999]
[1742401994705,8.94663711,2044.2,2043.7,4.999]
[1742401995094,4.89225,2044.1,2043.7,4.999]
[1742401995677,8.94658711,2044.2,2043.7,4.999]
[1742401995882,13.83865711,2044.2,2043.7,4.999]
[1742401996206,0.8126,2044.4,2043.8,3.8156]
[1742401996207,4.89181,2044.3,2043.8,3.8156]
[1742401996779,8.94612711,2044.4,2043.8,3.8156]
[1742401996980,4.89168,2044.3,2043.8,3.8156]
[1742401997512,9.78351,2044.3,2043.8,3.8156]
[1742401998010,4.89195,2044.2,2043.8,3.8156]
[1742401998187,8.94619711,2044.4,2043.8,4.7216]
[1742401998575,4.89175,2044.3,2043.9,0.98110728]
[1742401998792,9.78357,2044.3,2043.9,0.98110728]
[1742401998997,4.89189,2044.2,2043.8,3.8156]
[1742401999193,5.78654671,2044.2,2043.8,4.81102143]
[1742401999531,4.89166,2044.3,2043.8,4.81102143]
[1742402000091,4.89176,2044.3,2043.8,4.81102143]
[1742402000295,8.94610711,2044.4,2043.8,4.81102143]
[1742402000534,4.89178,2044.3,2043.8,4.81102143]
[1742402001109,8.94613711,2044.4,2043.8,4.81102143]
[1742402001338,5.69766,2044.7,2044.0,3.7754]
[1742402001542,5.45663086,2045.4,2044.4,4.05467711]
[1742402001836,0.7757,2045.4,2044.8,4.05467711]
[1742402002007,4.88962,2045.2,2044.8,4.05467711]
[1742402002336,4.88925,2045.3,2044.8,4.53883482]
[1742402002501,9.77829,2045.4,2044.9,0.98424463]
[1742402002847,9.77829,2045.4,2044.8,4.53883482]
[1742402002848,0.7622,2045.6,2044.8,4.53883482]
[1742402003134,4.05467711,2045.5,2045.0,3.0]
[1742402003435,4.88942,2045.3,2045.0,3.0]
[1742402003730,4.88942,2045.3,2045.0,1.33008348]
[1742402004642,4.88951,2045.2,2045.0,1.33008348]
[1742402004814,9.77886,2045.3,2045.0,1.33008348]
[1742402005014,9.7792,2045.2,2045.0,1.33008348]
[1742402005229,9.7792,2045.2,2044.9,8.762]
[1742402005230,4.88975,2045.1,2044.9,8.762]
[1742402005725,4.8902,2045.0,2044.7,5.7749]
[1742402005909,4.89028,2044.9,2044.8,3.0]
[1742402006105,4.89005,2045.0,2044.8,3.0]
[1742402006302,9.77966,2045.1,2044.8,3.0]
[1742402006531,4.88997,2045.0,2044.8,3.0]
[1742402007137,4.89021,2044.9,2044.8,3.0]
[1742402007435,4.89021,2044.9,2044.7,5.7749]
[1742402007436,4.8904,2044.9,2044.7,5.7749]
[1742402008115,4.88992,2045.1,2044.7,5.7749]
[1742402008318,4.8895,2045.2,2044.7,7.25839]
[1742402008521,4.88983,2045.1,2044.7,7.25839]
[1742402009443,4.89027,2044.9,2044.7,5.7749]
[1742402009832,9.78012,2045.0,2044.7,5.7749]
[1742402010013,4.89024,2044.9,2044.7,5.7749]
[1742402010213,4.88998,2045.0,2044.7,5.7749]
[1742402011960,4.88951,2045.2,2044.7,5.7749]
[1742402012133,4.88951,2045.2,2044.8,0.57749]
[1742402012320,4.88968,2045.2,2044.8,0.57749]
[1742402012524,4.88929,2045.3,2044.9,0.7536]
[1742402013021,4.88955,2045.2,2044.9,0.7536]
[1742402013222,9.77921,2045.2,2044.9,0.7536]
[1742402013423,4.88975,2045.1,2044.9,0.7536]
[1742402013732,4.88955,2045.2,2044.9,0.7536]
[1742402014468,9.77921,2045.2,2044.9,0.7536]
[1742402014629,4.88955,2045.2,2044.9,0.7536]